bitfinex-derivatives/quotes_ETHF0:USTF0_20250205
["timestamp","ask_amount","ask_price","bid_price","bid_amount"]
[1738764665580,3.2078,2813.0,2812.7,0.00533428]
[1738764665778,0.5575,2812.9,2812.7,0.00533428]
[1738764665975,3.2078,2813.0,2812.7,0.00533428]
[1738764666178,0.00533428,2813.2,2812.7,0.00533428]
[1738764666179,3.2078,2813.1,2812.7,0.00533428]
[1738764666379,3.7667,2813.1,2812.7,0.00533428]
[1738764666579,3.2078,2812.8,2812.7,0.00533428]
[1738764666880,3.91858,2812.8,2812.7,0.00533428]
[1738764667181,3.2078,2812.8,2812.0,3.2078]
[1738764667378,3.2078,2812.8,2812.2,2.98877959]
[1738764667775,3.7667,2813.1,2812.2,2.98877959]
[1738764667982,3.7667,2813.1,2812.3,4.70971943]
[1738764668182,3.7667,2813.1,2812.4,0.00533428]
[1738764668382,3.2078,2812.8,2812.4,0.00533428]
[1738764668889,3.91858,2812.8,2812.4,0.00533428]
[1738764669081,3.2078,2812.5,2812.4,0.00533428]
[1738764669481,3.2078,2812.5,2811.6,3.53997959]
[1738764669482,8.91866,2812.5,2811.6,3.53997959]
[1738764669682,3.2078,2812.1,2811.6,3.53997959]
[1738764670689,3.2078,2812.1,2811.6,3.54531387]
[1738764671489,3.2078,2812.1,2811.6,0.00533428]
[1738764671682,3.2078,2811.7,2811.6,0.00533428]
[1738764673486,8.2078,2811.7,2810.7,2.98877959]
[1738764673684,3.2078,2811.2,2810.6,3.2078]
[1738764673883,3.2078,2810.9,2810.2,4.7176]
[1738764674085,3.2078,2810.9,2810.3,2.98877959]
[1738764674394,3.2078,2810.9,2810.3,7.62352682]
[1738764674778,3.21313428,2810.9,2810.3,7.6288611]
[1738764674983,3.21313428,2810.9,2810.6,2.98877959]
[1738764675487,0.00533428,2810.9,2810.7,4.71683604]
[1738764676093,0.00533428,2810.9,2810.6,2.98877959]
[1738764676592,0.00533428,2810.9,2810.3,2.99411387]
[1738764677785,0.00533428,2810.9,2810.4,4.68789434]
[1738764678991,0.00533428,2810.9,2810.3,2.99411387]
[1738764679799,0.00533428,2810.9,2810.6,2.98877959]
[1738764680200,0.00533428,2810.9,2810.7,4.67107645]
[1738764681896,0.00533428,2810.9,2810.8,3.2078]
[1738764682094,3.2078,2812.0,2810.8,3.2078]
[1738764682395,3.2078,2812.0,2811.1,2.98877959]
[1738764683404,0.00533428,2811.8,2811.1,2.98877959]
[1738764683597,0.00533428,2811.8,2811.4,2.98877959]
[1738764684797,0.00533428,2811.8,2811.2,0.5399]
[1738764685193,3.2078,2811.7,2811.2,0.5399]
[1738764685398,0.00533428,2811.8,2810.8,3.2078]
[1738764685399,3.2078,2811.4,2810.9,0.5655]
[1738764686892,3.2078,2811.4,2810.5,6.74947959]
[1738764687292,3.2078,2811.4,2810.6,4.62783989]
[1738764688200,3.2078,2811.1,2810.5,0.5529]
[1738764688403,3.56917959,2811.6,2810.3,0.57083428]
[1738764688404,3.2078,2810.8,2810.3,0.57083428]
[1738764689097,3.2078,2810.5,2810.3,0.00533428]
[1738764689500,3.91917,2810.5,2810.3,0.00533428]
[1738764689698,40.8,2810.4,2810.3,0.00533428]
[1738764690400,3.2078,2810.5,2810.3,0.00533428]
[1738764690595,3.2078,2810.8,2810.3,0.00533428]
[1738764690805,3.2078,2810.8,2810.5,2.98877959]
[1738764691308,3.2078,2810.8,2810.6,4.57796826]
[1738764691694,3.2078,2810.8,2810.5,2.98877959]
[1738764691903,3.2078,2810.8,2810.4,1.1055]
[1738764692308,3.2078,2810.5,2810.3,0.00533428]
[1738764698211,3.2078,2810.5,2810.4,4.56316702]
[1738764698509,3.2078,2810.5,2810.4,5.14706702]
[1738764699311,3.2078,2810.5,2810.3,0.54563428]
[1738764699904,3.2078,2810.5,2810.3,0.00533428]
[1738764701209,40.8,2810.9,2810.4,4.69386139]
[1738764701511,3.751,2811.2,2810.6,2.98877959]
[1738764701704,3.751,2811.2,2810.5,0.5302]
[1738764702110,3.751,2811.2,2810.6,4.69386139]
[1738764704305,3.751,2811.2,2810.5,0.5302]
[1738764706318,3.2078,2810.9,2810.3,2.99411387]
[1738764707612,3.91906,2810.9,2810.3,2.99411387]
[1738764707915,3.91906,2810.9,2810.3,0.00533428]
[1738764707916,0.5639,2810.8,2810.3,0.00533428]
[1738764708509,3.2078,2810.6,2810.3,0.00533428]
[1738764709812,0.5639,2810.8,2810.3,2.99411387]
[1738764711223,3.7717,2810.8,2810.3,0.00533428]
[1738764713221,3.2078,2810.8,2810.3,0.00533428]
[1738764714420,3.2078,2810.5,2810.3,0.00533428]
[1738764714616,0.5362,2810.4,2810.3,0.00533428]
[1738764715412,0.5362,2810.4,2809.3,3.2078]
[1738764715413,0.71152,2809.9,2809.3,3.2078]
[1738764715620,3.2078,2809.7,2809.3,3.2078]
[1738764715923,3.2078,2810.0,2809.4,8.81579544]
[1738764716220,3.2078,2810.0,2809.3,3.2078]
[1738764716221,3.2078,2809.7,2809.3,3.2078]
[1738764716415,3.2078,2809.7,2809.1,2.98877959]
[1738764716626,3.2078,2809.7,2809.4,0.00533428]
[1738764717212,3.21313428,2810.0,2809.5,4.53313269]
[1738764717513,3.21313428,2810.0,2809.5,5.65913269]
[1738764718713,3.21313428,2810.0,2809.4,2.99411387]
[1738764718714,3.92462428,2810.0,2809.4,0.00533428]
[1738764718921,3.21313428,2810.0,2809.4,0.00533428]
[1738764719318,3.92462428,2810.0,2809.4,0.00533428]
[1738764719515,3.21313428,2810.0,2809.4,0.00533428]
[1738764720014,3.2078,2809.7,2809.4,0.00533428]
[1738764720216,1.0825,2809.6,2809.4,0.00533428]
[1738764720517,1.6304,2809.6,2809.4,0.00533428]
[1738764721127,0.71169,2809.3,2808.5,2.99602874]
[1738764721417,0.71184,2808.7,2807.9,3.57512874]
[1738764721624,3.2078,2808.3,2807.9,0.5791]
[1738764721823,4.2975,2808.6,2808.2,2.99602874]
[1738764722214,3.2078,2808.6,2808.2,2.99602874]
[1738764722624,3.2078,2808.6,2808.1,0.00533428]
[1738764723121,3.2078,2808.3,2808.1,0.00533428]
[1738764725128,40.8,2808.2,2808.1,0.00533428]
[1738764725426,41.3642,2808.2,2808.1,0.00533428]
[1738764725729,42.07615,2808.2,2807.3,0.5608]
[1738764726034,3.2078,2807.8,2807.3,0.5608]
[1738764726323,3.2078,2807.4,2806.9,3.2078]
[1738764726524,3.7525,2807.7,2807.0,2.99787686]
[1738764726925,3.7525,2807.7,2807.1,0.0035562]
[1738764727118,0.5777,2807.6,2807.1,0.0035562]
[1738764729819,3.2078,2807.4,2807.1,0.0035562]
[1738764737527,1.29499,2807.3,2806.1,6.20567686]
[1738764737737,3.2078,2806.8,2806.1,7.30677686]
[1738764738035,3.2078,2806.8,2806.2,4.59320331]
[1738764738633,3.21314388,2806.8,2806.2,4.59320331]
[1738764739037,0.00534388,2806.8,2806.4,2.99787686]
[1738764739628,0.00534388,2806.8,2806.7,2.99787686]
[1738764740332,0.00534388,2806.8,2806.7,7.70223905]
[1738764740531,0.00534388,2806.8,2806.7,8.27333905]
[1738764740738,3.2078,2807.5,2807.0,2.99787686]
[1738764741042,0.5446,2808.0,2807.0,2.99787686]
[1738764741043,3.2078,2807.8,2807.1,5.25935316]
[1738764741639,3.2078,2807.8,2807.3,2.99787686]
[1738764741839,0.00534388,2807.7,2807.3,2.99787686]
[1738764742647,0.00534388,2807.7,2807.1,3.74204388]
[1738764742648,3.2078,2807.5,2807.1,0.00534388]
[1738764742837,3.2078,2807.2,2807.1,0.00534388]
[1738764747135,3.2078,2807.5,2807.1,0.00534388]
[1738764747533,0.5778,2807.4,2807.1,0.00534388]
[1738764750746,3.2078,2807.2,2807.1,0.00534388]
[1738764753437,0.5778,2807.4,2807.1,0.00534388]
[1738764753648,3.2078,2807.2,2807.1,0.00534388]
[1738764754249,3.92,2807.2,2807.1,0.00534388]
[1738764754843,3.2078,2807.2,2807.1,0.00534388]
[1738764757543,0.71224,2807.1,2806.4,1.24658635]
[1738764757743,3.2078,2806.8,2806.5,1.24658635]
[1738764757944,3.2078,2806.8,2806.4,5.84665943]
[1738764758153,3.2078,2806.5,2806.1,1.24677736]
[1738764758455,3.92026,2806.2,2805.8,1.80977736]
[1738764758750,3.92026,2806.2,2805.5,1.82977736]
[1738764758950,3.92026,2806.2,2805.6,1.24677736]
[1738764759344,3.92026,2806.2,2805.5,0.583]
[1738764759544,0.00534388,2806.3,2805.0,1.24677736]
[1738764759545,3.2078,2805.6,2805.0,1.24677736]
[1738764759742,3.2078,2805.2,2804.7,1.80977736]
[1738764759949,3.2078,2805.2,2804.6,0.583]
[1738764760146,3.2078,2804.9,2804.3,1.24677736]
[1738764760349,0.5515,2805.4,2803.9,2.39422766]
[1738764760350,0.71291,2804.5,2803.9,2.39422766]
[1738764760550,0.5515,2805.4,2803.4,0.5774]
[1738764760551,5.60202766,2804.1,2803.4,0.5774]
[1738764760749,5.60202766,2804.1,2803.3,8.3289757]
[1738764760750,3.2078,2803.8,2803.3,8.3289757]
[1738764760945,40.8,2803.7,2803.3,8.3289757]
[1738764761145,3.2078,2803.8,2803.3,8.3289757]
[1738764761146,3.2078,2803.8,2803.6,2.39422766]
[1738764761352,3.2078,2805.1,2803.7,6.46097]
[1738764761551,3.2078,2804.8,2804.4,2.39422766]
[1738764761750,40.8,2804.7,2804.4,2.39422766]
[1738764761951,40.8,2804.7,2804.1,2.39422766]
[1738764762255,3.2078,2805.1,2804.4,2.39422766]
[1738764762448,3.2078,2804.8,2804.1,6.94693859]
[1738764762752,40.8,2804.7,2804.1,3.00595702]
[1738764763950,3.2078,2804.8,2804.2,4.64208555]
[1738764764157,3.2078,2804.8,2804.4,3.00595702]
[1738764764750,3.2078,2805.1,2804.4,3.00595702]
[1738764764952,3.2078,2805.5,2804.7,6.21375702]
[1738764765152,3.2078,2805.8,2804.8,1.9294]
[1738764765349,3.2078,2805.8,2805.1,3.00595702]
[1738764765750,3.2078,2805.8,2805.2,4.69553601]
[1738764766349,3.21314388,2805.8,2805.2,4.70087989]
[1738764766658,3.2078,2805.5,2805.2,0.00534388]
[1738764768158,3.2078,2805.5,2805.4,3.00595702]
[1738764769054,3.21314388,2805.8,2805.4,3.00595702]
[1738764769459,3.2078,2805.5,2805.3,0.5746]
[1738764769659,3.2078,2805.5,2805.2,0.00534388]
[1738764770154,1.6921,2805.4,2805.2,0.00534388]
[1738764770659,1.1262,2805.4,2805.2,0.00534388]
[1738764770852,3.2078,2805.5,2805.2,0.00534388]
[1738764771959,0.00534388,2805.8,2805.4,6.21375702]
[1738764772151,0.00534388,2805.8,2805.7,3.00595702]
[1738764772756,44.0078,2806.5,2805.7,15.90382282]
[1738764773060,44.0078,2806.5,2806.0,3.00595702]
[1738764773555,3.2078,2806.5,2806.0,3.00595702]
[1738764773862,3.21314388,2806.5,2806.1,4.64598476]
[1738764774159,3.21314388,2806.5,2806.0,3.00595702]
[1738764775064,3.21314388,2806.5,2806.1,4.73792251]
[1738764775552,0.00534388,2806.5,2806.3,3.00595702]
[1738764775752,0.00534388,2806.5,2806.3,7.59475702]
[1738764775957,0.00534388,2806.5,2806.4,5.26696651]
[1738764776257,3.2078,2807.0,2806.4,5.26696651]
[1738764776455,3.2078,2807.0,2806.8,3.00595702]
[1738764777158,3.2078,2807.0,2806.6,3.2078]
[1738764777358,3.2078,2807.0,2806.6,3.21314388]
[1738764777860,3.2078,2807.0,2806.7,4.58501247]
[1738764781358,3.2078,2807.0,2806.6,0.00534388]
[1738764781662,0.71222,2807.1,2806.6,0.00534388]
[1738764781663,3.2078,2806.7,2806.6,0.00534388]
[1738764781859,3.2078,2807.1,2806.6,0.00534388]
[1738764782162,3.2078,2807.1,2806.8,3.00595702]
[1738764784762,3.2078,2807.1,2806.7,0.5324]
[1738764785559,3.2078,2806.8,2806.6,0.00534388]
[1738764786163,1.154,2806.7,2806.6,0.00534388]
[1738764787372,0.5804,2806.7,2806.6,0.00534388]
[1738764787956,0.5781,2807.0,2806.6,0.00534388]
[1738764788357,0.5781,2807.0,2806.6,4.66210217]
[1738764788564,3.2078,2807.1,2806.6,4.66210217]
[1738764788762,3.2078,2807.1,2806.6,5.20390217]
[1738764788967,0.00534388,2807.2,2806.8,3.00595702]
[1738764789268,3.2078,2808.3,2807.1,3.00595702]
[1738764789465,0.5634,2808.2,2807.6,3.00595702]
[1738764789864,40.8,2808.1,2807.6,3.00595702]
[1738764790064,3.2078,2808.0,2807.3,6.21375702]
[1738764790259,3.9198,2808.0,2807.3,6.21375702]
[1738764790567,3.91996,2807.4,2806.7,3.00595702]
[1738764790763,1.1149,2807.3,2806.6,0.54714388]
[1738764791064,1.1149,2807.3,2806.6,0.00534388]
[1738764791265,0.5508,2807.2,2806.6,0.00534388]
[1738764793367,3.21314388,2807.9,2807.0,3.00595702]
[1738764793557,3.2078,2807.1,2806.7,4.60686767]
[1738764793759,3.2078,2806.8,2806.6,0.00534388]
[1738764800872,0.71239,2806.5,2805.4,3.00595702]
[1738764801068,3.2078,2806.1,2805.4,3.00595702]
[1738764801265,3.2078,2806.1,2805.4,7.67893353]
[1738764801466,0.5276,2806.0,2805.4,4.67297651]
[1738764801865,0.5276,2806.0,2805.3,4.66077922]
[1738764802076,0.53294388,2806.0,2805.5,4.66077922]
[1738764802371,0.53294388,2806.0,2805.4,0.00534388]
[1738764802772,0.53294388,2806.0,2805.5,4.63426329]
[1738764802977,0.53294388,2806.0,2805.4,0.00534388]
[1738764804078,3.2078,2805.9,2805.4,0.00534388]
[1738764805061,3.2078,2805.9,2805.4,3.0113009]
[1738764805272,0.00534388,2806.0,2805.7,3.00595702]
[1738764806269,0.00534388,2806.0,2805.8,7.8992645]
[1738764806469,0.00534388,2806.0,2805.9,0.5292]
[1738764806677,0.00534388,2806.0,2805.9,1.0594]
[1738764807172,0.00534388,2806.0,2805.9,5.74609551]
[1738764809770,0.00534388,2806.0,2805.5,3.2078]
[1738764809969,0.00534388,2806.0,2805.4,0.00534388]
[1738764810176,0.54944388,2806.0,2805.4,0.00534388]
[1738764810376,1.26196388,2806.0,2805.4,0.00534388]
[1738764810777,3.2078,2805.7,2805.4,0.00534388]
[1738764811677,0.5347,2805.6,2805.4,0.00534388]
[1738764812573,3.2078,2805.7,2805.4,3.0113009]
[1738764812779,3.2078,2805.7,2805.5,4.63544645]
[1738764812973,0.00534388,2806.0,2805.6,0.5736]
[1738764813576,0.00534388,2806.0,2805.7,4.63544645]
[1738764813776,0.00534388,2806.0,2805.7,8.19430347]
[1738764814882,0.00534388,2806.0,2805.7,8.55110347]
[1738764815381,0.00534388,2806.0,2805.8,3.2078]
[1738764817182,0.00534388,2806.0,2805.9,4.68947921]
[1738764822393,0.00534388,2806.0,2805.9,5.93625657]
[1738764822686,0.00534388,2806.0,2805.9,9.68947921]
[1738764823080,0.00534388,2806.0,2805.9,10.93625657]
[1738764823684,0.00534388,2806.0,2805.9,5.93625657]
[1738764824484,0.00534388,2806.0,2805.9,10.93625657]
[1738764824689,3.7889,2806.9,2805.9,14.48901359]
[1738764824885,3.7889,2806.9,2806.2,6.21375702]
[1738764825090,3.7889,2806.9,2806.3,0.5459]
[1738764825291,3.7889,2806.9,2806.3,5.74341538]
[1738764825884,3.79424388,2806.9,2806.3,5.74341538]
[1738764829491,3.21314388,2806.9,2806.5,3.00595702]
[1738764829790,3.21314388,2806.9,2806.5,6.21375702]
[1738764829990,3.21314388,2806.9,2806.6,4.63055514]
[1738764830291,0.00534388,2806.9,2806.6,4.63055514]
[1738764832198,0.00534388,2806.9,2806.8,6.21375702]
[1738764832489,3.2078,2807.5,2806.8,10.88792164]
[1738764832894,3.2078,2807.5,2807.1,3.00595702]
[1738764833091,3.2078,2807.5,2807.2,0.5467]
[1738764833392,3.2078,2807.5,2807.2,5.22086462]
[1738764834689,0.00534388,2807.6,2807.2,8.42866462]
[1738764835491,3.2078,2807.3,2807.1,0.00534388]
[1738764836096,1.1114,2807.2,2806.6,3.2078]
[1738764836395,3.2078,2806.9,2806.0,0.3568]
[1738764836596,3.2078,2806.9,2806.2,3.00595702]
[1738764836801,3.2078,2806.9,2806.3,4.59286482]
[1738764837202,3.2078,2806.9,2806.2,3.00595702]
[1738764837410,3.2078,2806.9,2806.3,0.00534388]
[1738764837606,3.2078,2806.9,2806.3,4.5982087]
[1738764840700,3.2078,2806.9,2806.4,0.5353]
[1738764841102,3.2078,2806.9,2806.5,4.70072283]
[1738764844502,3.2078,2806.9,2806.3,0.00534388]
[1738764848609,3.2078,2807.2,2806.8,3.00595702]
[1738764848913,3.2078,2807.2,2806.9,5.16626038]
[1738764850007,0.00534388,2807.6,2807.1,3.00595702]
[1738764850207,0.00534388,2807.6,2807.1,6.21375702]
[1738764850506,0.00534388,2807.6,2807.2,4.6713952]
[1738764851309,0.00534388,2807.6,2807.2,5.2221952]
[1738764851914,0.00534388,2807.6,2807.2,4.6713952]
[1738764852909,0.00534388,2807.6,2807.1,3.2078]
[1738764854517,3.2078,2807.5,2806.9,1.1508]
[1738764854718,3.91994,2807.5,2806.5,6.21375702]
[1738764854912,0.5682,2807.4,2806.5,6.21375702]
[1738764855115,0.5442,2807.3,2806.6,4.64098433]
[1738764857820,0.5682,2807.4,2806.8,3.2078]
[1738764858120,3.2078,2807.5,2806.8,6.21375702]
[1738764858323,3.2078,2807.5,2807.1,3.00595702]
[1738764858823,3.2078,2807.5,2807.2,4.54653967]
[1738764859217,0.00534388,2807.6,2807.0,5.09343967]
[1738764859415,0.00534388,2807.6,2807.1,0.5379]
[1738764859827,0.00534388,2807.6,2807.2,4.68522413]
[1738764860023,0.00534388,2807.6,2807.4,6.21375702]
[1738764860421,0.00534388,2807.6,2807.5,4.68522413]
[1738764862925,0.00534388,2807.6,2807.1,8.13065702]
[1738764863425,0.00534388,2807.6,2807.2,4.71473628]
[1738764864022,0.00534388,2807.6,2807.4,3.00595702]
[1738764864423,0.00534388,2807.6,2807.5,4.65302278]
[1738764866924,3.2078,2808.7,2807.5,9.65302278]
[1738764867120,3.2078,2808.7,2808.2,3.00595702]
[1738764867432,3.2078,2808.7,2808.2,4.38495702]
[1738764867627,3.2078,2808.7,2808.3,4.5615185]
[1738764868530,3.2078,2808.7,2808.2,1.38434388]
[1738764871029,3.2078,2808.7,2808.3,4.70688904]
[1738764872529,3.2078,2808.7,2808.2,1.38434388]
[1738764874323,0.00534388,2808.8,2808.5,3.00595702]
[1738764875733,0.00534388,2808.8,2808.5,6.21375702]
[1738764876630,0.00534388,2808.8,2808.3,0.5732]
[1738764876631,3.2078,2808.7,2808.3,0.5732]
[1738764877031,0.5339,2808.6,2808.2,0.00534388]
[1738764877334,0.5591,2808.5,2808.2,0.00534388]
[1738764882034,3.2078,2808.3,2808.2,0.00534388]
[1738764882436,0.5591,2808.5,2808.2,0.00534388]
[1738764883136,3.7669,2808.5,2808.2,0.00534388]
[1738764883436,0.71191,2808.4,2808.2,0.00534388]
[1738764883739,2.99928295,2808.4,2807.3,1.378]
[1738764883943,3.2078,2808.0,2807.3,1.378]
[1738764884132,1.6454,2807.9,2807.3,4.37728295]
[1738764884734,1.6454,2807.9,2807.4,4.59513491]
[1738764886034,3.2078,2808.0,2807.6,2.99928295]
[1738764886935,3.2078,2808.0,2807.7,4.62392825]
[1738764887738,3.2078,2808.0,2807.8,1.1038]
[1738764889840,1.136,2808.2,2807.8,1.1038]
[1738764891341,1.136,2808.2,2807.6,2.99841082]
[1738764891746,1.136,2808.2,2807.7,4.71234808]
[1738764892751,3.2078,2808.4,2807.9,2.99841082]
[1738764892940,4.8971,2808.7,2807.9,2.99841082]
[1738764893249,4.8971,2808.7,2808.0,4.70705134]
[1738764894650,4.8971,2808.7,2808.2,2.39206829]
[1738764894946,0.00534388,2808.8,2808.5,5.59986829]
[1738764895247,0.00534388,2808.8,2808.6,0.5673]
[1738764895445,0.00534388,2808.8,2808.7,0.5306]
[1738764895747,0.00534388,2808.8,2808.7,5.25904328]
[1738764895947,0.00534388,2808.8,2808.7,6.50582064]
[1738764896450,0.00534388,2808.8,2808.7,5.25904328]
[1738764896649,0.00534388,2808.8,2808.7,8.25443862]
[1738764901347,0.00534388,2808.8,2808.5,3.2078]
[1738764901848,0.57784388,2808.8,2808.5,3.2078]
[1738764902055,3.2078,2808.6,2808.0,1.1129]
[1738764902557,40.8,2808.5,2808.1,2.99539534]
[1738764903557,3.2078,2808.6,2808.1,2.99539534]
[1738764903860,0.57784388,2808.8,2808.1,2.99539534]
[1738764904055,40.8,2808.7,2808.1,2.99539534]
[1738764904256,0.57784388,2808.8,2808.0,1.1129]
[1738764904257,0.57784388,2808.8,2808.4,2.99539534]
[1738764904454,0.00534388,2808.8,2808.7,2.99539534]
[1738764904956,0.00534388,2808.8,2808.7,7.56160648]
[1738764905545,0.00534388,2808.8,2808.6,0.5839]
[1738764905750,0.00534388,2808.8,2808.7,2.99539534]
[1738764905955,0.00534388,2808.8,2808.7,8.08535979]
[1738764907457,0.37665,2809.0,2808.7,8.08535979]
[1738764907653,0.37665,2809.0,2808.9,3.2078]
[1738764907862,0.5389,2809.9,2808.9,8.2078]
[1738764908053,0.5389,2809.9,2808.7,9.89923715]
[1738764908054,0.5389,2809.9,2809.6,2.99539534]
[1738764909257,0.00534388,2810.0,2809.6,2.99539534]
[1738764909453,0.00534388,2810.0,2809.9,2.99539534]
[1738764910158,0.00534388,2810.0,2809.9,7.65901972]
[1738764910551,0.00534388,2810.0,2809.9,8.22201972]
[1738764911655,0.00534388,2810.0,2809.6,2.99539534]
[1738764912248,0.00534388,2810.0,2809.6,7.54439602]
[1738764912456,0.00534388,2810.0,2809.9,2.99539534]
[1738764913261,0.00534388,2810.0,2809.9,7.62384173]
[1738764914360,2.99539534,2811.7,2809.9,7.62384173]
[1738764914361,3.2078,2811.0,2810.2,0.71143]
[1738764914557,3.2078,2811.0,2810.8,2.99539534]
[1738764915161,3.2078,2811.0,2810.4,1.377]
[1738764915162,3.2078,2811.0,2810.5,2.99539534]
[1738764915563,0.574,2810.9,2810.5,7.54750062]
[1738764917152,0.574,2810.9,2810.8,2.99539534]
[1738764917458,0.00353059,2811.0,2810.8,2.99539534]
[1738764917654,0.00353059,2811.0,2810.9,3.7762]
[1738764917851,3.2078,2811.3,2811.2,2.99539534]
[1738764918357,3.2078,2811.3,2810.9,6.77159534]
[1738764918556,3.2078,2811.3,2810.9,10.79585145]
[1738764918759,0.5832,2811.2,2810.9,7.58805145]
[1738764918959,0.5832,2811.2,2810.9,2.99539534]
[1738764919557,0.5832,2811.2,2810.8,0.00534388]
[1738764920968,3.2078,2811.0,2810.8,0.00534388]
[1738764921163,1.1332,2810.9,2810.8,0.00534388]
[1738764921663,6.84448,2810.9,2810.0,2.99539534]
[1738764921860,3.2078,2810.6,2810.0,2.99539534]
[1738764922458,44.0078,2810.6,2810.0,2.99539534]
[1738764922863,44.0078,2810.6,2810.0,3.00073922]
[1738764923065,3.2078,2810.6,2810.0,3.00073922]
[1738764923659,40.8,2810.8,2810.3,2.99539534]
[1738764924263,3.2078,2810.7,2810.3,2.99539534]
[1738764924467,3.2078,2810.4,2810.0,3.00073922]
[1738764924966,0.5827,2810.3,2810.0,3.00073922]
[1738764926167,3.2078,2810.1,2810.0,0.00534388]
[1738764926667,3.2078,2810.1,2810.0,3.00073922]
[1738764927164,0.5698,2812.3,2811.0,6.70203068]
[1738764927364,0.5698,2812.3,2812.0,2.99539534]
[1738764927564,0.5827,2812.4,2812.0,2.99539534]
[1738764927767,0.5827,2812.4,2812.3,2.99539534]
[1738764928165,0.5827,2812.4,2812.1,3.2078]
[1738764928367,0.5827,2812.4,2812.1,3.2131339]
[1738764928767,0.5827,2812.4,2812.2,0.43389157]
[1738764929071,0.5827,2812.4,2812.3,0.43391119]
[1738764931370,41.3827,2812.4,2812.3,0.43391119]
[1738764932776,41.3827,2812.4,2812.3,3.42930653]
[1738764933070,3.2078,2813.0,2812.3,3.42930653]
[1738764933277,3.2078,2813.0,2812.4,0.43391119]
[1738764933472,44.0078,2813.0,2812.5,0.43391119]
[1738764933667,44.0078,2813.0,2812.6,3.42930653]
[1738764933873,44.0078,2813.0,2812.7,0.43391119]
[1738764934177,44.0078,2813.0,2812.8,0.43391119]
[1738764934372,40.8,2813.0,2812.9,0.43391119]
[1738764935075,40.8,2813.0,2812.9,0.43366947]
[1738764937170,0.5747,2813.8,2812.9,7.94524365]
[1738764937373,0.5747,2813.8,2813.3,2.99539534]
[1738764937683,45.0922,2813.9,2813.4,0.43344694]
[1738764937874,40.8,2813.9,2813.7,3.2078]
[1738764938073,40.8,2813.9,2813.8,0.43344694]
[1738764938478,1.0844,2814.6,2813.8,5.12286254]
[1738764938678,1.0844,2814.6,2814.3,2.99539534]
[1738764938975,0.551,2815.3,2814.4,3.64124694]
[1738764939181,19.58773941,2815.5,2814.4,3.64124694]
[1738764939182,19.58773941,2815.5,2814.9,2.99539534]
[1738764939378,19.58773941,2815.5,2815.0,0.43221028]
[1738764939685,19.58773941,2815.5,2815.1,0.43221028]
[1738764939882,19.58773941,2815.5,2815.2,0.43221028]
[1738764940084,16.37993941,2815.5,2815.3,0.43221028]
[1738764940280,16.37993941,2815.5,2814.8,2.99539534]
[1738764940281,16.37993941,2815.5,2815.4,0.43221028]
[1738764941181,16.37993941,2815.5,2815.4,0.43060439]
[1738764941485,3.2078,2815.8,2815.4,0.43060439]
[1738764941678,3.2078,2815.8,2815.5,0.43060439]
[1738764941879,3.2078,2815.8,2815.1,6.20852924]
[1738764942083,3.2078,2815.8,2815.2,0.43003993]
[1738764942286,3.2078,2815.8,2815.3,0.43003993]
[1738764942586,3.2078,2815.8,2815.4,3.42543527]
[1738764942794,40.8,2816.0,2815.5,0.43003993]
[1738764943083,3.2078,2815.9,2815.6,0.43003993]
[1738764943275,3.2078,2815.9,2815.4,2.99539534]
[1738764943479,3.2078,2815.9,2815.5,0.42940218]
[1738764943679,3.2078,2815.9,2815.6,0.42940218]
[1738764943879,3.2078,2815.9,2815.1,6.20852924]
[1738764944084,3.2078,2815.9,2815.2,0.42942604]
[1738764944286,3.2078,2815.9,2815.3,0.42942604]
[1738764944488,3.2078,2815.9,2815.4,0.42942604]
[1738764944687,3.2078,2815.9,2815.5,0.42942604]
[1738764944990,3.2078,2815.9,2815.1,6.20852924]
[1738764945184,3.2078,2815.9,2815.2,0.42905413]
[1738764945384,3.2078,2815.9,2815.3,0.42905413]
[1738764945586,3.2078,2815.9,2815.4,0.42905413]
[1738764945782,3.2078,2815.9,2815.5,0.42905413]
[1738764945988,3.2078,2815.9,2815.1,6.20852924]
[1738764946288,3.2078,2815.9,2815.2,0.42869519]
[1738764946489,3.2078,2815.9,2815.3,0.42869519]
[1738764946689,3.2078,2815.9,2815.4,0.42869519]
[1738764946986,3.2078,2815.6,2815.1,0.0053339]
[1738764947387,4.3272,2815.5,2815.1,0.0053339]
[1738764947995,40.8,2815.2,2815.1,0.0053339]
[1738764948381,40.8,2815.2,2815.1,0.43388897]
[1738764948587,40.8,2815.2,2815.1,0.4339301]
[1738764948793,40.8,2815.2,2815.1,0.0053339]
[1738764949692,44.0078,2815.2,2815.1,0.0053339]
[1738764950190,44.0078,2815.2,2814.1,0.5281]
[1738764950191,49.0078,2815.2,2814.4,3.2078]
[1738764950397,3.2078,2814.8,2813.9,2.99539534]
[1738764950587,0.5451,2814.7,2814.1,0.4290224]
[1738764950786,0.5451,2814.7,2814.2,0.4290224]
[1738764950983,3.2078,2814.5,2813.9,2.99539534]
[1738764951184,3.2078,2814.5,2814.0,0.42925778]
[1738764951385,3.2078,2814.1,2813.9,0.0053339]
[1738764951991,3.2078,2814.4,2813.9,0.0053339]
[1738764952891,3.2078,2814.1,2813.9,0.0053339]
[1738764953190,3.2078,2814.1,2814.0,0.43058451]
[1738764953590,3.2078,2814.4,2814.0,0.43058451]
[1738764953792,3.2078,2814.4,2814.1,0.43058451]
[1738764954094,3.2078,2814.4,2813.9,3.00072924]
[1738764954095,3.2078,2814.4,2814.2,0.43058451]
[1738764954288,0.71048,2814.0,2813.9,0.0053339]
[1738764954484,3.2078,2814.0,2813.0,3.54309534]
[1738764954690,3.2078,2814.0,2813.3,2.99539534]
[1738764954986,40.8,2813.9,2813.3,6.20319534]
[1738764955194,3.2078,2814.4,2813.6,2.99539534]
[1738764955589,3.2078,2814.4,2813.9,2.99539534]
[1738764955794,44.0078,2814.4,2813.9,2.99539534]
[1738764956697,3.2078,2814.4,2814.0,4.58906451]
[1738764957091,3.2078,2814.4,2813.9,6.20319534]
[1738764960600,0.00530064,2814.5,2813.9,6.20319534]
[1738764961001,0.00530064,2814.5,2814.2,6.20319534]
[1738764963407,0.00530064,2814.5,2814.2,2.99539534]
[1738764964301,0.00530064,2814.5,2814.2,6.20319534]
[1738764964809,40.8,2814.4,2814.2,3.2078]
[1738764965004,40.8,2814.4,2813.9,6.20319534]
[1738764965199,40.8,2814.4,2813.9,7.4499727]